fUSD/lending_fUSD_20250504
["ID","MTS","AMOUNT","RATE_DAILY","PERIOD"]
[359861109,1746376263971,-450.0,0.00019863,2]
[359861110,1746376263980,-565.20400919,0.00019863,2]
[359861111,1746376263990,-321.08,0.00019863,2]
[359861112,1746376264000,-1612.09,0.00019863,2]
[359861113,1746376264009,-450.0,0.00019863,2]
[359861114,1746376264019,-237.47911116,0.0001987,2]
[359861115,1746376264029,-773.28006414,0.00019873,2]
[359861116,1746376264038,-500.0,0.00019873,2]
[359861117,1746376264049,-500.0,0.00019873,2]
[359861118,1746376264058,-500.0,0.00019873,2]
[359861119,1746376264068,-524.37240105,0.00019873,2]
[359861120,1746376264077,-500.0,0.00019873,2]
[359861121,1746376264088,-500.0,0.0001989,2]
[359861122,1746376264097,-500.0,0.0001989,2]
[359861123,1746376264107,-500.0,0.0001989,2]
[359861124,1746376264116,-153.02,0.0001989,2]
[359861125,1746376264126,-207.18,0.0001989,2]
[359861126,1746376264135,-450.0,0.0001989,2]
[359861127,1746376264144,-585.13,0.0001989,2]
[359861128,1746376264153,-485.8,0.0001989,2]
[359861129,1746376264163,-450.0,0.0001989,2]
[359861130,1746376264172,-450.0,0.0001989,2]
[359861131,1746376264181,-450.0,0.0001989,2]
[359861132,1746376264191,-411.26,0.0001989,2]
[359861133,1746376264200,-450.0,0.0001989,2]
[359861134,1746376264210,-517.74,0.0001989,2]
[359861135,1746376264219,-450.0,0.0001989,2]
[359861136,1746376264229,-450.0,0.0001989,2]
[359861137,1746376264238,-431.73,0.0001989,2]
[359861138,1746376264248,-500.0,0.0001989,2]
[359861139,1746376264259,-179.39,0.0001989,2]
[359861140,1746376264269,-476.96,0.0001989,2]
[359861141,1746376264278,-347.52,0.0001989,2]
[359861142,1746376264287,-450.0,0.0001989,2]
[359861143,1746376264297,-450.0,0.0001989,2]
[359861144,1746376264306,-450.0,0.0001989,2]
[359861145,1746376264317,-450.0,0.0001989,2]
[359861146,1746376264327,-450.0,0.0001989,2]
[359861147,1746376264337,-351.21,0.0001989,2]
[359861148,1746376264349,-450.0,0.0001989,2]
[359861149,1746376264359,-450.0,0.0001989,2]
[359861150,1746376264369,-450.0,0.0001989,2]
[359861151,1746376264379,-490.76,0.0001989,2]
[359861152,1746376264389,-245.27,0.0001989,2]
[359861153,1746376264399,-450.0,0.0001989,2]
[359861154,1746376264410,-291.86,0.0001989,2]
[359861155,1746376264420,-1136.58,0.0001989,2]
[359861156,1746376264430,-450.0,0.0001989,2]
[359861157,1746376264439,-450.0,0.0001989,2]
[359861158,1746376264449,-899.51,0.0001989,2]
[359861159,1746376264459,-450.0,0.0001989,2]
[359861160,1746376264468,-524.17,0.0001989,2]
[359861161,1746376264478,-450.0,0.0001989,2]
[359861162,1746376264488,-450.0,0.0001989,2]
[359861163,1746376264498,-450.0,0.0001989,2]
[359861164,1746376264508,-847.36,0.0001989,2]
[359861165,1746376264517,-450.0,0.0001989,2]
[359861166,1746376264526,-3287.6,0.0001989,2]
[359861167,1746376264536,-450.0,0.0001989,2]
[359861168,1746376264545,-450.0,0.0001989,2]
[359861169,1746376264555,-450.0,0.0001989,2]
[359861170,1746376264565,-314.32,0.0001989,2]
[359861171,1746376264576,-450.0,0.0001989,2]
[359861172,1746376264585,-450.0,0.0001989,2]
[359861173,1746376264594,-378.04,0.0001989,2]
[359861174,1746376264604,-884.57,0.0001989,2]
[359861175,1746376264612,-450.0,0.0001989,2]
[359861176,1746376264622,-2982.32,0.0001989,2]
[359861177,1746376264631,-450.0,0.0001989,2]
[359861178,1746376264640,-263.52,0.0001989,2]
[359861179,1746376264649,-450.0,0.0001989,2]
[359861180,1746376264658,-450.0,0.0001989,2]
[359861181,1746376264667,-308.45,0.0001989,2]
[359861182,1746376264676,-450.0,0.0001989,2]
[359861183,1746376264686,-450.0,0.0001989,2]
[359861184,1746376264695,-450.0,0.0001989,2]
[359861185,1746376264704,-2778.18,0.0001989,2]
[359861186,1746376264712,-450.0,0.0001989,2]
[359861187,1746376264722,-450.0,0.0001989,2]
[359861188,1746376264731,-450.0,0.0001989,2]
[359861189,1746376264740,-450.0,0.0001989,2]
[359861190,1746376264749,-450.0,0.0001989,2]
[359861191,1746376264759,-450.0,0.0001989,2]
[359861192,1746376264769,-525.98,0.0001989,2]
[359861193,1746376264779,-450.0,0.0001989,2]
[359861194,1746376264788,-246.84,0.0001989,2]
[359861195,1746376264798,-450.0,0.0001989,2]
[359861196,1746376264808,-1597.78,0.0001989,2]
[359861197,1746376264819,-450.0,0.0001989,2]
[359861198,1746376264828,-450.0,0.0001989,2]
[359861199,1746376264838,-450.0,0.0001989,2]
[359861200,1746376264847,-450.0,0.0001989,2]
[359861201,1746376264856,-450.0,0.0001989,2]
[359861202,1746376264865,-450.0,0.0001989,2]
[359861203,1746376264874,-328.98508866,0.0001989,2]
[359861204,1746376264884,-208.58,0.0001989,2]
[359861205,1746376264893,-450.0,0.0001989,2]
[359861206,1746376264902,-198.2,0.0001989,2]
[359861207,1746376264911,-450.0,0.0001989,2]
[359861208,1746376264920,-450.0,0.0001989,2]
[359861209,1746376265049,-450.0,0.0001989,2]
[359861210,1746376265059,-23925.41,0.0001989,2]
[359861211,1746376265276,-450.0,0.0001989,2]
[359861212,1746376265286,-549.04,0.0001989,2]
[359861213,1746376265297,-660.77,0.0001989,2]
[359861214,1746376265306,-241.56,0.0001989,2]
[359861215,1746376265316,-450.0,0.0001989,2]
[359861216,1746376265325,-450.0,0.0001989,2]
[359861217,1746376265337,-570.01,0.0001989,2]
[359861218,1746376265346,-482.55,0.0001989,2]
[359861219,1746376265355,-450.0,0.0001989,2]
[359861220,1746376265365,-1612.09,0.0001989,2]
[359861221,1746376265375,-450.0,0.0001989,2]
[359861222,1746376265384,-805.0,0.00019899,2]
[359861223,1746376265393,-1503.74073691,0.000199,2]
[359861224,1746376265403,-773.28006414,0.000199,2]
[359861225,1746376265413,-237.47911116,0.000199,2]
[359861226,1746376265422,-344.80826722,0.000199,2]
[359861227,1746376265432,-8778.17061302,0.000199,2]
[359861228,1746376265442,-523.11505242,0.00019916,2]
[359861229,1746376265451,-500.0,0.00019916,2]
[359861230,1746376265461,-300.0,0.00019916,2]
[359861231,1746376265471,-575.75,0.00019916,2]
[359861232,1746376265481,-300.0,0.00019916,2]
[359861233,1746376265490,-466.58,0.00019917,2]
[359861234,1746376265499,-585.13,0.00019917,2]
[359861235,1746376265510,-2419.0,0.00019917,2]
[359861236,1746376265519,-163.192,0.00019917,2]
[359861237,1746376265529,-250.07,0.00019917,2]
[359861238,1746376265539,-450.0,0.00019917,2]
[359861239,1746376265548,-450.0,0.00019917,2]
[359861240,1746376265558,-450.0,0.00019917,2]
[359861241,1746376265567,-517.74,0.00019917,2]
[359861242,1746376265577,-450.0,0.00019917,2]
[359861243,1746376265587,-450.0,0.00019917,2]
[359861244,1746376265596,-450.0,0.00019917,2]
[359861245,1746376265605,-212.22,0.00019917,2]
[359861246,1746376265614,-230.48,0.00019917,2]
[359861247,1746376265624,-307.49,0.00019917,2]
[359861248,1746376265633,-450.0,0.00019917,2]
[359861249,1746376265642,-450.0,0.00019917,2]
[359861250,1746376265652,-480.66,0.00019917,2]
[359861251,1746376265662,-450.0,0.00019917,2]
[359861252,1746376265673,-490.76,0.00019917,2]
[359861253,1746376265685,-450.0,0.00019917,2]
[359861254,1746376265694,-1136.58,0.00019917,2]
[359861255,1746376265705,-217.05,0.00019917,2]
[359861256,1746376265714,-450.0,0.00019917,2]
[359861257,1746376265725,-899.51,0.00019917,2]
[359861258,1746376265734,-450.0,0.00019917,2]
[359861259,1746376265744,-524.17,0.00019917,2]
[359861260,1746376265753,-475.66,0.00019917,2]
[359861261,1746376265763,-183.95,0.00019917,2]
[359861262,1746376265772,-465.35,0.00019917,2]
[359861263,1746376265781,-847.36,0.00019917,2]
[359861264,1746376265790,-450.0,0.00019917,2]
[359861265,1746376265799,-3287.6,0.00019917,2]
[359861266,1746376265809,-450.0,0.00019917,2]
[359861267,1746376265818,-371.77606987,0.00019917,2]
[359861268,1746376265827,-464.66571517,0.00019917,2]
[359861269,1746376265836,-450.0,0.00019917,2]
[359861270,1746376265845,-450.0,0.00019917,2]
[359861271,1746376265854,-884.57,0.00019917,2]
[359861272,1746376265863,-244.32,0.00019917,2]
[359861273,1746376265873,-2982.32,0.00019917,2]
[359861274,1746376265882,-450.0,0.00019917,2]
[359861275,1746376265892,-489.35,0.00019917,2]
[359861276,1746376265902,-159.52,0.00019917,2]
[359861277,1746376265912,-592.81926524,0.00019917,2]
[359861278,1746376265921,-564.43628022,0.00019917,2]
[359861279,1746376265930,-2778.18,0.00019917,2]
[359861280,1746376265940,-450.0,0.00019917,2]
[359861281,1746376265950,-450.0,0.00019917,2]
[359861282,1746376265960,-450.0,0.00019917,2]
[359861283,1746376265970,-450.0,0.00019917,2]
[359861284,1746376265979,-450.0,0.00019917,2]
[359861285,1746376265990,-531.12,0.00019917,2]
[359861286,1746376266003,-450.0,0.00019917,2]
[359861287,1746376266013,-525.98,0.00019917,2]
[359861288,1746376266023,-450.0,0.00019917,2]
[359861289,1746376266032,-450.0,0.00019917,2]
[359861290,1746376266042,-1597.78,0.00019917,2]
[359861291,1746376266052,-450.0,0.00019917,2]
[359861292,1746376266062,-450.0,0.00019917,2]
[359861293,1746376266075,-450.0,0.00019917,2]
[359861294,1746376266085,-450.0,0.00019917,2]
[359861295,1746376266095,-450.0,0.00019917,2]
[359861296,1746376266105,-275.58,0.00019917,2]
[359861297,1746376266115,-450.0,0.00019917,2]
[359861298,1746376266124,-450.0,0.00019917,2]
[359861299,1746376266134,-561.55,0.00019917,2]
[359861300,1746376266143,-450.0,0.00019917,2]
[359861301,1746376266152,-23925.41,0.00019917,2]
[359861302,1746376266162,-450.0,0.00019917,2]
[359861303,1746376266171,-549.04,0.00019917,2]
[359861304,1746376266181,-660.77,0.00019917,2]
[359861305,1746376266191,-450.0,0.00019917,2]
[359861306,1746376266200,-450.0,0.00019917,2]
[359861307,1746376266210,-570.01,0.00019917,2]
[359861308,1746376266220,-482.55,0.00019917,2]
[359861309,1746376266230,-160.75,0.00019917,2]
[359861310,1746376266239,-1612.09,0.00019917,2]
[359861311,1746376266248,-450.0,0.00019917,2]
[359861312,1746376266258,-500.0,0.00019917,2]
[359861313,1746376266267,-500.0,0.00019917,2]
[359861314,1746376266277,-500.0,0.00019917,2]
[359861315,1746376266288,-8778.17061286,0.00019934,2]
[359861316,1746376266297,-797.0,0.00019941,2]
[359861317,1746376266306,-581.0,0.00019941,2]
[359861318,1746376266316,-550.0,0.00019941,2]
[359861319,1746376266325,-1451.0,0.00019941,2]
[359861320,1746376266336,-915.0,0.00019941,2]
[359861321,1746376266348,-158.645,0.00019941,2]
[359861322,1746376266359,-1140.0,0.00019941,2]
[359861323,1746376266368,-4010.0,0.00019941,2]
[359861324,1746376266378,-1300.0,0.00019941,2]
[359861325,1746376266389,-153.0,0.00019941,2]
[359861326,1746376266399,-500.0,0.00019944,2]
[359861327,1746376266408,-467.61085737,0.00019944,2]
[359861328,1746376266420,-500.0,0.00019944,2]
[359861329,1746376266430,-500.0,0.00019944,2]
[359861330,1746376266439,-300.0,0.00019944,2]
[359861331,1746376266453,-300.0,0.00019944,2]
[359861332,1746376266463,-500.0,0.00019945,2]
[359861333,1746376266473,-500.0,0.00019945,2]
[359861334,1746376266483,-500.0,0.00019945,2]
[359861335,1746376266492,-585.13,0.00019945,2]
[359861336,1746376266502,-450.0,0.00019945,2]
[359861337,1746376266512,-450.0,0.00019945,2]
[359861338,1746376266521,-450.0,0.00019945,2]
[359861339,1746376266531,-517.74,0.00019945,2]
[359861340,1746376266540,-450.0,0.00019945,2]
[359861341,1746376266549,-472.25,0.00019945,2]
[359861342,1746376266560,-450.0,0.00019945,2]
[359861343,1746376266570,-267.56,0.00019945,2]
[359861344,1746376266580,-450.0,0.00019945,2]
[359861345,1746376266589,-450.0,0.00019945,2]
[359861346,1746376266598,-490.76,0.00019945,2]
[359861347,1746376266608,-450.0,0.00019945,2]
[359861348,1746376266618,-1136.58,0.00019945,2]
[359861349,1746376266627,-450.0,0.00019945,2]
[359861350,1746376266637,-899.51,0.00019945,2]
[359861351,1746376266646,-480.93,0.00019945,2]
[359861352,1746376266655,-524.17,0.00019945,2]
[359861353,1746376266665,-847.36,0.00019945,2]
[359861354,1746376266674,-450.0,0.00019945,2]
[359861355,1746376266683,-3287.6,0.00019945,2]
[359861356,1746376266693,-326.57,0.00019945,2]
[359861357,1746376266703,-450.0,0.00019945,2]
[359861358,1746376266712,-450.0,0.00019945,2]
[359861359,1746376266722,-884.57,0.00019945,2]
[359861360,1746376266732,-2982.32,0.00019945,2]
[359861361,1746376266741,-450.0,0.00019945,2]
[359861362,1746376266751,-2778.18,0.00019945,2]
[359861363,1746376266762,-450.0,0.00019945,2]
[359861364,1746376266772,-524.83162203,0.00019945,2]
[359861365,1746376266782,-450.0,0.00019945,2]
[359861366,1746376266792,-450.0,0.00019945,2]
[359861367,1746376266801,-450.0,0.00019945,2]
[359861368,1746376266811,-450.0,0.00019945,2]
[359861369,1746376266820,-525.98,0.00019945,2]
[359861370,1746376266831,-450.0,0.00019945,2]
[359861371,1746376266841,-450.0,0.00019945,2]
[359861372,1746376266851,-1597.78,0.00019945,2]
[359861373,1746376266860,-450.0,0.00019945,2]
[359861374,1746376266870,-190.51,0.00019945,2]
[359861375,1746376266879,-450.0,0.00019945,2]
[359861376,1746376266889,-422.46316553,0.00019945,2]
[359861377,1746376266898,-450.0,0.00019945,2]
[359861378,1746376266907,-450.0,0.00019945,2]
[359861379,1746376266917,-332.65,0.00019945,2]
[359861380,1746376266927,-484.79,0.00019945,2]
[359861381,1746376266936,-23925.41,0.00019945,2]
[359861382,1746376266946,-307.27,0.00019945,2]
[359861383,1746376266955,-549.04,0.00019945,2]
[359861384,1746376266964,-660.77,0.00019945,2]
[359861385,1746376266974,-450.0,0.00019945,2]
[359861386,1746376266983,-450.0,0.00019945,2]
[359861387,1746376266992,-570.01,0.00019945,2]
[359861388,1746376267002,-482.55,0.00019945,2]
[359861389,1746376267011,-1612.09,0.00019945,2]
[359861390,1746376267020,-151.0,0.00019945,2]
[359861391,1746376267029,-450.0,0.00019945,2]
[359861392,1746376267038,-433.0,0.00019945,2]
[359861393,1746376267048,-200.0,0.00019951,2]
[359861394,1746376267057,-8778.17061286,0.00019969,2]
[359861395,1746376267066,-151.0,0.00019969,2]
[359861396,1746376267076,-300.0,0.00019971,2]
[359861397,1746376267085,-585.13,0.00019972,2]
[359861398,1746376267095,-154.21324671,0.00019972,2]
[359861399,1746376267105,-450.0,0.00019972,2]
[359861400,1746376267115,-304.1710102,0.00019972,2]
[359861401,1746376267125,-517.74,0.00019972,2]
[359861402,1746376267134,-450.0,0.00019972,2]
[359861403,1746376267144,-209.46,0.00019972,2]
[359861404,1746376267153,-450.0,0.00019972,2]
[359861405,1746376267162,-457.37,0.00019972,2]
[359861406,1746376267171,-490.76,0.00019972,2]
[359861407,1746376267180,-151.0,0.00019972,2]
[359861408,1746376267190,-151.0,0.00019972,2]
[359861409,1746376267199,-450.0,0.00019972,2]
[359861410,1746376267208,-1136.58,0.00019972,2]
[359861411,1746376267218,-450.0,0.00019972,2]
[359861412,1746376267227,-899.51,0.00019972,2]
[359861413,1746376267237,-151.0,0.00019972,2]
[359861414,1746376267246,-524.17,0.00019972,2]
[359861415,1746376267255,-847.36,0.00019972,2]
[359861416,1746376267264,-450.0,0.00019972,2]
[359861417,1746376267273,-3287.6,0.00019972,2]
[359861418,1746376267283,-450.0,0.00019972,2]
[359861419,1746376267292,-450.0,0.00019972,2]
[359861420,1746376267302,-884.57,0.00019972,2]
[359861421,1746376267311,-2982.32,0.00019972,2]
[359861422,1746376267321,-450.0,0.00019972,2]
[359861423,1746376267331,-2778.18,0.00019972,2]
[359861424,1746376267344,-317.63169432,0.00019972,2]
[359861425,1746376267354,-445.50941913,0.00019972,2]
[359861426,1746376267364,-450.0,0.00019972,2]
[359861427,1746376267374,-450.0,0.00019972,2]
[359861428,1746376267383,-151.0,0.00019972,2]
[359861429,1746376267393,-151.0,0.00019972,2]
[359861430,1746376267402,-450.0,0.00019972,2]
[359861431,1746376267413,-525.98,0.00019972,2]
[359861432,1746376267423,-450.0,0.00019972,2]
[359861433,1746376267433,-450.0,0.00019972,2]
[359861434,1746376267442,-1597.78,0.00019972,2]
[359861435,1746376267452,-376.4,0.00019972,2]
[359861436,1746376267461,-151.0,0.00019972,2]
[359861437,1746376267470,-450.0,0.00019972,2]
[359861438,1746376267480,-151.0,0.00019972,2]
[359861439,1746376267489,-151.0,0.00019972,2]
[359861440,1746376267499,-450.0,0.00019972,2]
[359861441,1746376267508,-298.001154,0.00019972,2]
[359861442,1746376267518,-450.0,0.00019972,2]
[359861443,1746376267527,-23925.41,0.00019972,2]
[359861444,1746376267536,-151.0,0.00019972,2]
[359861445,1746376267546,-549.04,0.00019972,2]
[359861446,1746376267556,-660.77,0.00019972,2]
[359861447,1746376267566,-450.0,0.00019972,2]
[359861448,1746376267575,-450.0,0.00019972,2]
[359861449,1746376267585,-570.01,0.00019972,2]
[359861450,1746376267594,-482.55,0.00019972,2]
[359861451,1746376267604,-1612.09,0.00019972,2]
[359861452,1746376267613,-500.0,0.00019972,2]
[359861453,1746376267622,-500.0,0.00019972,2]
[359861454,1746376267631,-500.0,0.00019972,2]
[359861455,1746376267641,-500.0,0.00019985,2]
[359861456,1746376267650,-575.75,0.00019985,2]
[359861457,1746376267660,-259.17424389,0.00019985,2]
[359861458,1746376267669,-53465.26658949,0.00019986,2]
[359861459,1746376268058,-250.0,0.00019986,2]
[359861460,1746376268080,-450.0,0.00019726,2]
[359861461,1746376268090,-9733.09176101,0.00019986,2]
[359861462,1746376268100,-735.53796758,0.00019998,2]
[359861463,1746376268109,-500.0,0.00019998,2]
[359861464,1746376268119,-235.85178417,0.00019998,2]
[359861465,1746376268129,-500.0,0.00019998,2]
[359861466,1746376268137,-500.0,0.00019998,2]
[359861467,1746376268147,-500.0,0.00019998,2]
[359861468,1746376268156,-500.0,0.00019998,2]
[359861469,1746376268165,-500.0,0.00019998,2]
[359861470,1746376268175,-500.0,0.00019998,2]
[359861471,1746376268184,-500.0,0.00019998,2]
[359861472,1746376268193,-447.61700641,0.00019998,2]
[359861473,1746376268202,-500.0,0.00019998,2]
[359861474,1746376268212,-500.0,0.00019998,2]
[359861475,1746376268222,-500.0,0.00019998,2]
[359861476,1746376268231,-250.0,0.00019998,2]
[359861477,1746376268241,-575.75,0.00019998,2]
[359861478,1746376268251,-575.75,0.00019998,2]
[359861479,1746376268261,-575.75,0.00019998,2]
[359861480,1746376268270,-575.75,0.00019998,2]
[359861481,1746376268279,-575.75,0.00019998,2]
[359861482,1746376268289,-575.75,0.00019998,2]
[359861483,1746376268298,-500.0,0.00019999,2]
[359861484,1746376268308,-666.0,0.00019999,2]
[359861485,1746376268317,-187.86392371,0.00019999,2]
[359861486,1746376268327,-500.0,0.00019999,2]
[359861487,1746376268336,-48888.45066674,0.00019999,2]
[359861488,1746376268348,-3335.00000002,0.00019999,2]
[359861489,1746376268435,-473.83253751,0.00019753,2]
[359861490,1746376268446,-925.0,0.00019941,2]
[359861491,1746376268456,-38114.45821374,0.00019999,2]
[359861492,1746376268468,-2439.41110954,0.00019999,2]
[359861493,1746376268479,-1338598.65814207,0.00019999,2]
[359861494,1746376268489,-40492.81925753,0.00019999,7]
[359861495,1746376268498,-151.0,0.00019999,2]
[359861496,1746376268508,-151.0,0.00019999,2]
[359861497,1746376268518,-151.0,0.00019999,2]
[359861498,1746376268527,-500.0,0.00019999,2]
[359861499,1746376268536,-500.0,0.00019999,2]
[359861500,1746376268546,-500.0,0.00019999,2]
[359861501,1746376268555,-500.0,0.00019999,2]
[359861502,1746376268564,-500.0,0.00019999,2]
[359861503,1746376268573,-500.0,0.00019999,2]
[359861504,1746376268582,-500.0,0.00019999,2]
[359861505,1746376268591,-500.0,0.00019999,2]
[359861506,1746376268600,-500.0,0.00019999,2]
[359861507,1746376268609,-500.0,0.00019999,2]
[359861508,1746376268618,-500.0,0.00019999,2]
[359861509,1746376268627,-500.0,0.00019999,2]
[359861510,1746376268635,-500.0,0.00019999,2]
[359861511,1746376268644,-500.0,0.00019999,2]
[359861512,1746376268654,-500.0,0.00019999,2]
[359861513,1746376268663,-500.0,0.00019999,2]
[359861514,1746376268672,-500.0,0.00019999,2]
[359861515,1746376268681,-564.0,0.00019999,2]
[359861516,1746376268690,-500.0,0.00019999,2]
[359861517,1746376268700,-500.0,0.00019999,2]
[359861518,1746376268710,-500.0,0.00019999,2]
[359861519,1746376268721,-500.0,0.00019999,2]
[359861520,1746376268731,-500.0,0.00019999,2]
[359861521,1746376268740,-500.0,0.00019999,2]
[359861522,1746376268752,-500.0,0.00019999,2]
[359861523,1746376268761,-500.0,0.00019999,2]
[359861524,1746376268770,-527.0,0.00019999,2]
[359861525,1746376268779,-529.0,0.00019999,2]
[359861526,1746376268789,-348.21,0.00019999,2]
[359861527,1746376268799,-500.0,0.00019999,2]
[359861528,1746376268809,-500.0,0.00019999,2]
[359861529,1746376268819,-500.0,0.00019999,2]
[359861530,1746376268828,-500.0,0.00019999,2]
[359861531,1746376268838,-151.0,0.00019999,2]
[359861532,1746376268850,-151.0,0.00019999,2]
[359861533,1746376268859,-151.0,0.00019999,2]
[359861534,1746376268868,-72166.72238539,0.00019999,2]
[359861535,1746376268877,-575.75,0.00019999,2]
[359861536,1746376268886,-575.75,0.00019999,2]
[359861537,1746376268896,-575.75,0.00019999,2]
[359861538,1746376268905,-575.75,0.00019999,2]
[359861539,1746376268914,-575.75,0.00019999,2]
[359861540,1746376268923,-575.75,0.00019999,2]
[359861541,1746376268933,-575.75,0.00019999,2]
[359861542,1746376268942,-575.75,0.00019999,2]
[359861543,1746376268951,-575.75,0.00019999,2]
[359861544,1746376268961,-575.75,0.00019999,2]
[359861545,1746376268970,-575.75,0.00019999,2]
[359861546,1746376268980,-575.84,0.00019999,2]
[359861547,1746376268988,-151.0,0.00019999,2]
[359861548,1746376268998,-500.0,0.0002,2]
[359861549,1746376269007,-218.49578883,0.0002,2]
[359861550,1746376269017,-500.0,0.0002,2]
[359861551,1746376269026,-173.06460479,0.0002,2]
[359861552,1746376269035,-269390.27417876,0.0002,2]
[359861553,1746376269045,-302717.59830673,0.0002,2]
[359861554,1746376275036,-470.0,0.00019726,2]
[359861555,1746376275046,-728.30230735,0.0002,2]
[359861556,1746376275198,-467.65,0.00019726,2]
[359861557,1746376275210,-1571.3013217,0.0002,2]
[359861558,1746376275222,-9244.9878174,0.0002,2]
[359861559,1746376275233,-798.75001,0.0002,2]
[359861560,1746376275246,-393.8979766,0.0002,2]
[359861561,1746376275263,-492.23288952,0.00019726,2]
[359861562,1746376275273,-3405.2814647,0.0002,2]
[359861563,1746376275283,-2326.31359461,0.0002,2]
[359861564,1746376275407,-537.072431,0.00019726,2]
[359861565,1746376275417,-470.0,0.00019726,2]
[359861566,1746376275426,-1262.38018515,0.0002,2]
[359861567,1746376275438,-98237.8046804,0.0002,2]
[359861568,1746376275450,-222274.913,0.0002,2]
[359861569,1746376275468,-21047.75297255,0.0002,2]
[359861570,1746376275554,-450.0,0.00019726,2]
[359861571,1746376275564,-2678.46351356,0.0002,2]
[359861572,1746376275587,-287.158,0.0002,2]
[359861573,1746376275600,-2120.20058517,0.0002,2]
[359861574,1746376275612,-1157.19734654,0.0002,2]
[359861575,1746376276907,161.61,0.00018898,2]
[359861576,1746376276944,161.61,0.00028347,120]
[359861577,1746376277853,812.88,0.00019067,2]
[359861578,1746376440982,150.0,0.00018931,2]
[359861582,1746376547070,250.0,0.00017,2]
[359861583,1746376548013,300.0,0.00019,2]
[359861584,1746376573342,5854.64,0.00018812,2]
[359861585,1746376591885,184.47,0.000298,31]
[359861586,1746376591941,184.47,0.000298,31]
[359861587,1746376591999,184.47,0.000298,31]
[359861588,1746376592067,184.47,0.000298,31]
[359861589,1746376592142,184.47,0.000298,31]
[359861590,1746376592188,184.47,0.000298,31]
[359861591,1746376592244,184.47,0.000298,31]
[359861592,1746376592311,184.47,0.000298,31]
[359861593,1746376592373,184.47,0.000298,31]
[359861594,1746376592427,184.47,0.000298,31]
[359861595,1746376592493,184.47,0.000298,31]
[359861596,1746376592556,184.47,0.000298,31]
[359861597,1746376592616,184.47,0.000298,31]
[359861598,1746376592674,184.47,0.000298,31]
[359861599,1746376592746,184.47,0.000298,31]
[359861600,1746376592806,184.47,0.000298,31]
[359861601,1746376606136,1572.73,0.00018805,2]
[359861602,1746376828090,173.56,0.00018758,2]
[359861604,1746376919036,6000.0,0.00018,2]
[359861605,1746376934407,1158.04,0.00016888,2]
[359861606,1746376934655,1158.04,0.00019152,2]
[359861607,1746376968417,6000.0,0.000185,3]
[359861608,1746377109389,156.56,0.00018761,2]
[359861609,1746377121425,450.0,0.0003,30]
[359861612,1746377204066,154.97,0.000298,31]
[359861613,1746377204187,154.97,0.000298,31]
[359861614,1746377204240,154.97,0.000298,31]